bitfinex/quotes_BTCUSD_20240620
["timestamp","ask_amount","ask_price","bid_price","bid_amount"]
[1718865224643,0.78046271,65667.0,65666.0,0.070778]
[1718865225091,1.08502871,65667.0,65666.0,0.070778]
[1718865225295,1.09002871,65667.0,65666.0,0.070778]
[1718865226985,1.09002871,65667.0,65666.0,0.051946]
[1718865227403,1.09002871,65667.0,65666.0,0.070778]
[1718865227604,1.09002871,65667.0,65666.0,0.051946]
[1718865227808,1.09002871,65667.0,65666.0,0.070778]
[1718865230037,1.08502871,65667.0,65666.0,0.070778]
[1718865230244,1.14392871,65667.0,65666.0,0.070778]
[1718865230444,1.14892871,65667.0,65666.0,0.070778]
[1718865230822,1.14392871,65667.0,65666.0,0.070778]
[1718865232740,1.14892871,65667.0,65666.0,0.070778]
[1718865233231,1.09002871,65667.0,65666.0,0.070778]
[1718865233443,0.001,65667.0,65666.0,1.19594842]
[1718865233660,0.001,65667.0,65666.0,0.90137742]
[1718865233872,0.001,65667.0,65666.0,1.20594842]
[1718865234102,0.001,65667.0,65666.0,1.33246033]
[1718865234340,0.12291421,65688.0,65683.0,0.0159395]
[1718865234341,0.00861,65688.0,65683.0,0.0159395]
[1718865234557,0.0684971,65685.0,65683.0,0.0159395]
[1718865234769,0.74325824,65684.0,65683.0,0.0159395]
[1718865234983,0.84325824,65684.0,65683.0,0.0159395]
[1718865235194,0.77476114,65684.0,65683.0,0.0159395]
[1718865235633,0.77476114,65684.0,65681.0,0.0159395]
[1718865235860,0.67476114,65684.0,65683.0,0.021832]
[1718865236072,0.67476114,65684.0,65683.0,0.0377715]
[1718865236480,0.69317819,65684.0,65683.0,0.0387715]
[1718865237094,0.69317819,65684.0,65683.0,0.0357715]
[1718865238481,0.69317819,65684.0,65683.0,0.0857715]
[1718865238989,0.69317819,65684.0,65683.0,0.069832]
[1718865239342,0.69317819,65684.0,65683.0,0.072832]
[1718865240522,0.69317819,65684.0,65683.0,0.0887715]
[1718865242770,0.69317819,65684.0,65683.0,0.85707642]
[1718865242965,0.00861,65688.0,65687.0,0.24408342]
[1718865243165,0.00861,65688.0,65687.0,0.54855742]
[1718865244531,0.00861,65688.0,65687.0,1.15750542]
[1718865244731,0.00861,65688.0,65687.0,1.80130542]
[1718865246241,0.00861,65688.0,65687.0,1.80430542]
[1718865246585,0.00861,65688.0,65687.0,1.80930542]
[1718865247467,0.00861,65688.0,65687.0,0.859543]
[1718865247727,0.00861,65688.0,65687.0,0.55655742]
[1718865248114,0.00861,65688.0,65687.0,0.86103142]
[1718865249857,0.00861,65688.0,65687.0,0.85341142]
[1718865251197,0.00861,65688.0,65687.0,1.15788542]
[1718865252426,0.00861,65688.0,65687.0,1.46868542]
[1718865252623,0.00861,65688.0,65687.0,1.47868542]
[1718865252825,0.00861,65688.0,65687.0,1.53758542]
[1718865253139,0.00861,65688.0,65687.0,1.79888542]
[1718865253349,0.00961,65688.0,65687.0,1.80788542]
[1718865253943,0.00861,65688.0,65687.0,1.79388542]
[1718865254371,0.01061,65688.0,65687.0,1.81588542]
[1718865262366,0.01061,65688.0,65687.0,2.12035942]
[1718865267852,0.01061,65688.0,65687.0,2.06145942]
[1718865268023,0.01061,65688.0,65687.0,2.12035942]
[1718865268335,0.01061,65688.0,65687.0,2.06145942]
[1718865268490,0.01061,65688.0,65687.0,1.48635942]
[1718865274614,0.01061,65688.0,65687.0,2.06885942]
[1718865276911,0.01061,65688.0,65687.0,2.17085942]
[1718865283718,0.01061,65688.0,65687.0,2.47533342]
[1718865285271,0.01061,65688.0,65687.0,2.37333342]
[1718865285871,0.01061,65688.0,65687.0,2.47533342]
[1718865289847,0.01061,65688.0,65687.0,2.37333342]
[1718865290268,0.01061,65688.0,65687.0,2.53423342]
[1718865290913,0.00961,65688.0,65687.0,2.52323342]
[1718865291352,0.00961,65688.0,65687.0,2.53723342]
[1718865291852,0.00861,65688.0,65687.0,2.52623342]
[1718865292256,0.00861,65688.0,65687.0,2.54023342]
[1718865298677,0.00861,65688.0,65687.0,2.48133342]
[1718865298908,0.00861,65688.0,65687.0,2.54023342]
[1718865299114,0.00861,65688.0,65687.0,2.48133342]
[1718865299326,0.00861,65688.0,65687.0,2.54023342]
[1718865300008,0.00861,65688.0,65687.0,2.69279454]
[1718865301512,0.00861,65688.0,65687.0,2.22742054]
[1718865301734,0.00861,65688.0,65687.0,2.38832054]
[1718865302550,0.00861,65688.0,65687.0,2.69279454]
[1718865303103,0.00861,65688.0,65687.0,2.63389454]
[1718865303294,0.00861,65688.0,65687.0,2.69279454]
[1718865305956,0.00861,65688.0,65687.0,2.76579454]
[1718865307767,0.12479954,65703.0,65702.0,1.15964042]
[1718865307931,0.12479954,65703.0,65702.0,1.31220154]
[1718865313411,0.67367822,65703.0,65702.0,0.84523642]
[1718865315571,0.67367822,65703.0,65702.0,0.08422642]
[1718865315775,0.5823,65703.0,65702.0,0.08422642]
[1718865315919,0.69652277,65703.0,65702.0,0.08422642]
[1718865317550,0.69657828,65703.0,65702.0,0.08422642]
[1718865318094,0.4417907,65703.0,65702.0,0.08422642]
[1718865318302,0.32751242,65703.0,65702.0,0.08422642]
[1718865321317,0.01821159,65705.0,65704.0,0.23642342]
[1718865321598,0.307,65706.0,65705.0,0.02301442]
[1718865321974,0.307,65706.0,65705.0,0.04184642]
[1718865322180,0.00862,65707.0,65706.0,0.23641942]
[1718865322356,0.10862,65707.0,65706.0,0.54080542]
[1718865323350,0.10862,65707.0,65706.0,0.55080542]
[1718865323571,0.00862,65707.0,65706.0,0.55080542]
[1718865323770,0.12294598,65707.0,65706.0,0.55080542]
[1718865324012,0.22294644,65707.0,65706.0,0.55080542]
[1718865324412,0.22292568,65707.0,65706.0,0.55080542]
[1718865324830,0.10862,65707.0,65706.0,0.55080542]
[1718865325042,0.10862,65707.0,65706.0,0.60970542]
[1718865325254,0.20006261,65707.0,65706.0,0.60970542]
[1718865325444,0.07718887,65707.0,65706.0,0.60970542]
[1718865325613,0.07718886,65707.0,65706.0,0.60970542]
[1718865326015,0.07718886,65707.0,65706.0,0.55080542]
[1718865326216,0.00862,65707.0,65706.0,0.55080542]
[1718865328971,0.00862,65707.0,65706.0,1.00775254]
[1718865329124,0.00862,65707.0,65706.0,1.58585254]
[1718865329309,0.00862,65707.0,65706.0,1.89023854]
[1718865330229,0.00862,65707.0,65706.0,1.89223854]
[1718865330567,0.00862,65707.0,65706.0,1.89623854]
[1718865330776,0.00862,65707.0,65706.0,1.89423854]
[1718865330979,0.00862,65707.0,65706.0,1.90423854]
[1718865331186,0.00862,65707.0,65706.0,1.91823854]
[1718865334172,0.00862,65707.0,65706.0,1.97713854]
[1718865335173,0.00862,65707.0,65706.0,1.91823854]
[1718865335373,0.00862,65707.0,65706.0,1.97713854]
[1718865344253,0.00862,65707.0,65706.0,1.91823854]
[1718865344459,0.13208545,65720.0,65719.0,0.08422642]
[1718865344846,0.342804,65724.0,65722.0,0.06539442]
[1718865345099,0.252154,65723.0,65722.0,0.06539442]
[1718865346230,0.152154,65723.0,65722.0,0.08422642]
[1718865346436,0.0385,65724.0,65723.0,0.08422642]
[1718865348338,0.0385,65724.0,65723.0,0.08622642]
[1718865348950,0.0385,65724.0,65723.0,0.08722642]
[1718865349160,0.2557,65725.0,65723.0,0.08722642]
[1718865349161,0.2557,65725.0,65724.0,0.061212]
[1718865349358,0.2557,65725.0,65724.0,0.23637742]
[1718865351006,0.2557,65725.0,65724.0,0.08422642]
[1718865351615,0.2557,65725.0,65724.0,0.08522642]
[1718865353715,0.2507,65725.0,65724.0,0.08522642]
[1718865354889,0.5133831,65726.0,65725.0,0.061212]
[1718865355058,0.5133831,65726.0,65725.0,0.0771515]
[1718865356669,0.5133831,65726.0,65725.0,0.08422642]
[1718865356868,0.7640831,65726.0,65725.0,0.08422642]
[1718865357875,0.76391291,65726.0,65725.0,0.08422642]
[1718865358480,0.76352799,65726.0,65725.0,0.08422642]
[1718865358900,0.76314307,65726.0,65725.0,0.08422642]
[1718865359501,0.76029098,65726.0,65725.0,0.08422642]
[1718865360327,0.76029098,65726.0,65725.0,0.0771515]
[1718865361769,0.76029098,65726.0,65725.0,0.08422642]
[1718865362675,0.72179098,65726.0,65725.0,0.08422642]
[1718865363789,0.72179098,65726.0,65725.0,0.0771515]
[1718865364233,0.72179098,65726.0,65725.0,0.08422642]
[1718865366288,0.47109098,65726.0,65725.0,0.08422642]
[1718865366460,0.01465198,65726.0,65725.0,0.08422642]
[1718865366807,0.152145,65727.0,65726.0,0.06539442]
[1718865367005,0.152145,65727.0,65726.0,0.08422642]
[1718865367260,0.220496,65727.0,65726.0,0.08422642]
[1718865367475,0.152145,65727.0,65726.0,0.08422642]
[1718865368109,0.152145,65727.0,65726.0,0.08622642]
[1718865368249,0.22056554,65727.0,65726.0,0.08622642]
[1718865368668,0.22056554,65727.0,65726.0,0.08422642]
[1718865368874,0.24443032,65727.0,65726.0,0.09522642]
[1718865369420,0.24446392,65727.0,65726.0,0.09522642]
[1718865369632,0.17600978,65727.0,65726.0,0.09522642]
[1718865369832,0.09231858,65727.0,65726.0,0.09522642]
[1718865370069,0.24446258,65727.0,65726.0,0.09522642]
[1718865370283,0.17600878,65727.0,65726.0,0.0881515]
[1718865370739,0.17600878,65727.0,65726.0,0.072212]
[1718865370740,0.87585652,65727.0,65726.0,0.072212]
[1718865371015,1.14119174,65727.0,65726.0,0.072212]
[1718865371222,1.04992,65727.0,65726.0,0.072212]
[1718865373829,1.04992,65727.0,65726.0,0.0881515]
[1718865374031,1.04992,65727.0,65726.0,0.6801515]
[1718865374032,0.456432,65727.0,65726.0,0.6801515]
[1718865374258,0.456432,65727.0,65726.0,0.68722642]
[1718865374582,0.456432,65727.0,65726.0,0.6801515]
[1718865374788,0.456432,65727.0,65726.0,0.68722642]
[1718865376570,0.09136753,65728.0,65727.0,0.64702642]
[1718865376810,0.09136753,65728.0,65727.0,1.25601954]
[1718865377009,0.00861,65729.0,65728.0,0.17515642]
[1718865377361,0.07712375,65729.0,65728.0,0.38892954]
[1718865377761,0.07712375,65729.0,65728.0,0.69321354]
[1718865380442,0.07711659,65729.0,65728.0,1.56359754]
[1718865381420,0.00861,65729.0,65728.0,1.56359754]
[1718865386446,1.058507,65729.0,65728.0,0.067212]
[1718865386628,1.14982947,65729.0,65728.0,0.0831515]
[1718865386829,1.058507,65729.0,65728.0,0.0831515]
[1718865387889,1.058507,65729.0,65728.0,0.09022642]
[1718865388066,1.020007,65729.0,65728.0,0.09022642]
[1718865390085,1.020007,65729.0,65728.0,1.16745242]
[1718865390086,0.07710079,65729.0,65728.0,1.16745242]
[1718865390292,0.00861,65729.0,65728.0,0.80468754]
[1718865390956,0.00861,65729.0,65728.0,0.95682954]
[1718865391096,0.00861,65729.0,65728.0,1.26111354]
[1718865395100,0.00861,65729.0,65728.0,0.067212]
[1718865395314,0.86061393,65729.0,65728.0,0.0831515]
[1718865395525,0.828207,65729.0,65728.0,0.0831515]
[1718865395788,0.94234066,65729.0,65728.0,0.0831515]
[1718865396220,1.24661966,65729.0,65728.0,0.067212]
[1718865396431,1.24661966,65729.0,65728.0,0.006]
[1718865396432,1.137486,65729.0,65728.0,0.006]
[1718865396666,1.137486,65729.0,65728.0,0.024832]
[1718865396667,1.426686,65729.0,65728.0,0.024832]
[1718865397062,1.5636464,65729.0,65728.0,0.024832]
[1718865397393,1.426686,65729.0,65728.0,0.018832]
[1718865397733,1.069994,65728.0,65727.0,0.018832]
[1718865398443,1.070008,65727.0,65726.0,0.000946]
[1718865398675,1.454208,65727.0,65726.0,0.000946]
[1718865398908,1.9004564,65727.0,65726.0,0.000946]
[1718865399127,1.763496,65727.0,65726.0,0.000946]
[1718865402441,1.90039684,65727.0,65726.0,0.000946]
[1718865403779,1.28682084,65727.0,65726.0,0.000946]
[1718865404049,1.14992,65727.0,65726.0,0.000946]
[1718865404237,1.20882,65727.0,65726.0,0.000946]
[1718865404509,1.17032,65727.0,65726.0,0.0168855]
[1718865404946,0.91962,65727.0,65726.0,0.0168855]
[1718865405170,0.91962,65727.0,65726.0,0.000946]
[1718865405861,1.0336747,65727.0,65726.0,0.000946]
[1718865406145,0.91962,65727.0,65726.0,0.000946]
[1718865408358,0.91962,65727.0,65726.0,0.0168855]
[1718865408615,0.86072,65727.0,65726.0,0.02396042]
[1718865408830,0.86072,65727.0,65726.0,0.0168855]
[1718865410395,0.556432,65727.0,65726.0,0.0168855]
[1718865411491,0.97476617,65727.0,65726.0,0.000946]
[1718865412163,0.86072,65727.0,65726.0,0.000946]
[1718865412537,0.97476337,65727.0,65726.0,0.0168855]
[1718865413742,0.36618737,65727.0,65726.0,0.0592655]
[1718865413914,0.67047537,65727.0,65726.0,0.0592655]
[1718865415510,0.67047537,65727.0,65726.0,0.06734042]
[1718865415712,0.36618737,65727.0,65726.0,0.06734042]
[1718865416545,0.67047537,65727.0,65726.0,0.06734042]
[1718865416891,0.67047537,65727.0,65726.0,0.0602655]
[1718865417587,0.67047537,65727.0,65726.0,0.044326]
[1718865417746,0.67047537,65727.0,65726.0,0.043326]
[1718865418315,0.67047537,65727.0,65726.0,0.0592655]
[1718865418563,0.67047537,65727.0,65726.0,0.043326]
[1718865419138,0.67047537,65727.0,65726.0,0.0592655]
[1718865419345,0.72937537,65727.0,65726.0,0.0592655]
[1718865419546,0.72937537,65727.0,65726.0,0.043326]
[1718865419951,0.615332,65727.0,65726.0,0.043326]
[1718865420373,0.92048,65727.0,65726.0,0.043326]
[1718865421289,1.03451289,65727.0,65726.0,0.043326]
[1718865421505,1.229768,65727.0,65726.0,0.000946]
[1718865421706,1.518968,65727.0,65726.0,0.000946]
[1718865424022,1.97581712,65727.0,65726.0,0.000946]
[1718865424222,1.98846263,65727.0,65726.0,0.000946]
[1718865424468,1.98846396,65727.0,65726.0,0.000946]
[1718865425258,2.06454396,65727.0,65726.0,0.000946]
[1718865429236,3.3108206,65727.0,65726.0,0.000946]
[1718865429484,3.3773406,65727.0,65726.0,0.000946]
[1718865429686,0.005,65710.0,65706.0,0.04238]
[1718865429888,0.2892,65711.0,65707.0,0.018832]
[1718865429889,0.304376,65708.0,65707.0,0.018832]
[1718865430219,0.304376,65708.0,65706.0,0.018832]
[1718865430220,0.760952,65707.0,65706.0,0.018832]
[1718865430354,0.30439,65705.0,65704.0,0.018832]
[1718865430579,0.881704,65705.0,65704.0,0.018832]
[1718865430783,0.4566,65703.0,65702.0,0.018832]
[1718865431001,1.1293,65703.0,65702.0,0.018832]
[1718865431209,1.24334346,65703.0,65702.0,0.018832]
[1718865431427,1.22049729,65703.0,65702.0,0.018832]
[1718865431653,1.0654,65703.0,65702.0,0.018832]
[1718865431935,1.21549729,65703.0,65702.0,0.018832]
[1718865432413,1.1243,65703.0,65702.0,0.018832]
[1718865432670,1.20160145,65703.0,65702.0,0.018832]
[1718865432840,0.152211,65698.0,65697.0,0.018832]
[1718865433160,0.152211,65698.0,65694.0,0.0159395]
[1718865433161,0.761067,65697.0,65696.0,0.018832]
[1718865433459,0.896199,65697.0,65696.0,0.018832]
[1718865433689,1.195626,65697.0,65696.0,0.018832]
[1718865433863,0.761067,65697.0,65696.0,0.018832]
[1718865434093,1.065494,65697.0,65696.0,0.018832]
[1718865434870,1.065494,65697.0,65696.0,0.022832]
[1718865436157,0.761067,65697.0,65696.0,0.022832]
[1718865436400,0.761067,65697.0,65696.0,0.024832]
[1718865436997,1.065494,65697.0,65696.0,0.0407715]
[1718865437447,0.761067,65697.0,65696.0,0.024832]
[1718865437644,0.761067,65697.0,65696.0,0.0407715]
[1718865438413,0.761067,65697.0,65696.0,0.024832]
[1718865439795,0.761067,65697.0,65696.0,0.0407715]
[1718865439992,0.761067,65697.0,65696.0,0.024832]
[1718865440261,0.761067,65697.0,65696.0,0.0407715]
[1718865440391,0.761067,65697.0,65696.0,0.024832]
[1718865440964,0.761067,65697.0,65696.0,0.0407715]
[1718865441391,0.761067,65697.0,65696.0,0.024832]
[1718865442210,0.78494201,65697.0,65696.0,0.024832]
[1718865442714,0.78494201,65697.0,65696.0,0.0407715]
[1718865442715,0.79978545,65697.0,65696.0,0.0407715]
[1718865445161,1.10421245,65697.0,65696.0,0.0407715]
[1718865445420,0.79978545,65697.0,65696.0,0.0407715]
[1718865447583,1.10421245,65697.0,65696.0,0.0407715]
[1718865448194,0.79978545,65697.0,65696.0,0.0407715]
[1718865448827,1.10421245,65697.0,65696.0,0.0407715]
[1718865449433,0.79978545,65697.0,65696.0,0.0407715]
[1718865451231,1.10421245,65697.0,65696.0,0.0407715]
[1718865451461,0.79978545,65697.0,65696.0,0.0407715]
[1718865452898,1.10421245,65697.0,65696.0,0.0407715]
[1718865453348,1.10421245,65697.0,65696.0,0.024832]
[1718865453512,1.22062385,65697.0,65696.0,0.024832]
[1718865455398,1.22562385,65697.0,65696.0,0.024832]
[1718865457267,1.26412385,65697.0,65696.0,0.024832]
[1718865457472,1.32302385,65697.0,65696.0,0.024832]
[1718865460930,1.04026788,65697.0,65696.0,0.024832]
[1718865461136,0.92385648,65697.0,65696.0,0.024832]
[1718865461346,1.7315446,65697.0,65696.0,0.006]
[1718865461748,2.0359716,65697.0,65696.0,0.006]
[1718865462106,1.75080175,65697.0,65696.0,0.006]
[1718865462241,1.75080175,65697.0,65696.0,0.002]
[1718865462242,3.95068274,65697.0,65696.0,0.002]
[1718865462436,4.04929873,65697.0,65696.0,0.003]
[1718865462638,3.95830274,65697.0,65696.0,0.003]
[1718865462840,1.070641,65688.0,65687.0,0.000946]
[1718865463161,1.229541,65688.0,65687.0,0.000946]
[1718865465687,1.518741,65688.0,65687.0,0.000946]
[1718865467762,1.229541,65688.0,65687.0,0.000946]
[1718865469547,0.861172,65688.0,65687.0,0.571846]
[1718865469753,0.152232,65689.0,65688.0,0.04184642]
[1718865469957,0.82698814,65691.0,65690.0,0.65526814]
[1718865470172,0.67476114,65691.0,65690.0,0.65526814]
[1718865470375,0.67476114,65691.0,65690.0,0.80749814]
[1718865470784,0.16828197,65698.0,65690.0,0.80749814]
[1718865470785,0.152214,65697.0,65693.0,0.5718]
[1718865471160,0.152214,65697.0,65690.0,0.54138926]
[1718865471161,0.456641,65697.0,65696.0,0.00808642]
[1718865473346,0.52503962,65697.0,65696.0,0.00808642]
[1718865474366,0.54783916,65697.0,65696.0,0.00808642]
[1718865476006,0.456641,65697.0,65696.0,0.00808642]
[1718865478377,0.1139977,65698.0,65697.0,0.00808642]
[1718865478582,0.13679724,65704.0,65699.0,0.55918642]
[1718865478583,0.06848202,65700.0,65699.0,0.55918642]
[1718865478784,0.67476114,65706.0,65700.0,0.71139342]
[1718865478785,0.06848202,65701.0,65700.0,0.71139342]
[1718865478981,0.09130936,65703.0,65702.0,1.01579242]
[1718865478982,0.06848202,65703.0,65702.0,1.01579242]
[1718865479327,0.1139977,65707.0,65704.0,0.5511]
[1718865479328,0.08317022,65707.0,65704.0,0.5511]
[1718865479482,0.08317022,65707.0,65706.0,0.00808642]
[1718865479684,0.08317022,65707.0,65706.0,0.25138642]
[1718865479852,0.08317022,65707.0,65706.0,0.24138642]
[1718865480255,0.0146882,65707.0,65706.0,0.24138642]
[1718865480477,0.16848202,65708.0,65706.0,0.24138642]
[1718865480875,0.16848202,65708.0,65706.0,0.24338642]
[1718865481072,0.06848202,65708.0,65706.0,0.24338642]
[1718865481277,0.06848202,65709.0,65708.0,0.152188]
[1718865481544,0.09130936,65710.0,65708.0,0.152188]
[1718865481545,0.06848202,65710.0,65708.0,0.152188]
[1718865481721,0.06848202,65710.0,65709.0,0.479286]
[1718865481927,0.06848202,65715.0,65714.0,0.3224]
[1718865482194,0.08376319,65716.0,65714.0,0.3224]
[1718865482377,0.01528117,65716.0,65714.0,0.3224]
[1718865482718,0.1,65717.0,65714.0,0.3224]
[1718865482927,0.1,65717.0,65715.0,0.2568]
[1718865483579,0.11483115,65717.0,65715.0,0.2568]
[1718865483792,0.26699815,65717.0,65715.0,0.2568]
[1718865484566,0.252167,65717.0,65715.0,0.2578]
[1718865485492,0.252167,65717.0,65715.0,0.2588]
[1718865486668,0.1,65717.0,65715.0,0.2588]
[1718865486915,0.1669796,65718.0,65715.0,0.2588]
[1718865487145,0.1,65717.0,65715.0,0.2588]
[1718865487537,0.1,65717.0,65715.0,0.2578]
[1718865487884,0.1,65717.0,65716.0,0.478769]
[1718865488096,0.1,65717.0,65716.0,0.744369]
[1718865488334,0.0148146,65718.0,65716.0,0.5922]
[1718865488534,0.152163,65719.0,65716.0,0.5922]
[1718865488712,0.1,65720.0,65716.0,0.5922]
[1718865488713,0.1,65718.0,65716.0,0.5922]
[1718865488949,0.11493939,65720.0,65716.0,0.5922]
[1718865490408,0.11493939,65720.0,65716.0,0.744368]
[1718865491032,0.26709939,65720.0,65716.0,0.744368]
[1718865491239,0.26709939,65720.0,65719.0,0.304325]
[1718865491240,0.01493939,65720.0,65719.0,0.304325]
[1718865491438,0.01493939,65720.0,65719.0,0.456487]
[1718865491644,0.1,65724.0,65720.0,0.152159]
[1718865491820,0.252151,65724.0,65720.0,0.152159]
[1718865493141,0.252151,65724.0,65718.0,0.152163]
[1718865493348,0.1,65724.0,65720.0,0.001]
[1718865493560,1.085106,65721.0,65720.0,0.001]
[1718865493815,1.623306,65721.0,65720.0,0.001]
[1718865494224,1.62275081,65721.0,65720.0,0.001]
[1718865494752,1.69883081,65721.0,65720.0,0.001]
[1718865495182,0.456537,65712.0,65711.0,0.2469]
[1718865496912,0.456537,65712.0,65711.0,0.2519]
[1718865497474,0.456537,65712.0,65711.0,0.005]
[1718865497677,0.456537,65712.0,65711.0,0.008]
[1718865498282,0.760895,65712.0,65711.0,0.008]
[1718865498606,0.760895,65712.0,65702.0,0.152201]
[1718865498607,0.4566,65703.0,65702.0,0.543]
[1718865499163,0.147,65713.0,65702.0,0.543]
[1718865499164,0.152192,65707.0,65703.0,0.2402]
[1718865499293,0.152195,65705.0,65703.0,0.2402]
[1718865499495,0.152197,65704.0,65703.0,0.2402]
[1718865500093,0.15192057,65704.0,65703.0,0.2402]
[1718865501614,0.15192057,65704.0,65703.0,0.2472]
[1718865502141,0.15192057,65704.0,65703.0,0.2562]
[1718865502344,0.15192057,65704.0,65703.0,0.2402]
[1718865502899,0.15192057,65704.0,65703.0,0.2422]
[1718865503100,0.15192057,65704.0,65703.0,0.2402]
[1718865503475,0.15192057,65704.0,65703.0,0.2492]
[1718865503834,0.15192057,65704.0,65703.0,0.2502]
[1718865504278,0.15192057,65704.0,65703.0,0.2492]
[1718865504676,0.45631557,65704.0,65703.0,0.2562]
[1718865505721,0.76071057,65704.0,65703.0,0.2562]
[1718865507504,0.76017053,65704.0,65703.0,0.2562]
[1718865512104,0.76017053,65704.0,65703.0,0.016]
[1718865513553,1.06456553,65704.0,65703.0,0.016]
[1718865513740,1.12336553,65704.0,65703.0,0.016]
[1718865514438,1.12336553,65704.0,65703.0,0.009]
[1718865514819,1.12336553,65704.0,65697.0,0.2657]
[1718865515000,0.456634,65698.0,65697.0,0.5834]
[1718865516469,0.456634,65698.0,65697.0,0.5914]
[1718865517628,0.456634,65698.0,65697.0,0.5974]
[1718865517629,0.45607935,65698.0,65697.0,0.5974]
[1718865521869,0.15165635,65698.0,65697.0,0.5974]
[1718865522239,0.15165635,65698.0,65697.0,0.5894]
[1718865522433,0.45607935,65698.0,65697.0,0.5894]
[1718865522641,0.45607935,65698.0,65697.0,0.5884]
[1718865522841,0.45607935,65698.0,65697.0,0.5874]
[1718865523126,0.45607935,65698.0,65697.0,0.2757]
[1718865523355,0.45607935,65698.0,65697.0,0.2717]
[1718865523769,0.45607935,65698.0,65697.0,0.2767]
[1718865524168,0.16447242,65698.0,65697.0,0.2717]
[1718865524481,0.46889542,65698.0,65697.0,0.2767]
[1718865524835,0.46889542,65698.0,65697.0,0.2707]
[1718865525465,0.46889542,65698.0,65697.0,0.2767]
[1718865527585,0.46834664,65698.0,65697.0,0.2767]
[1718865531266,0.46834664,65698.0,65697.0,0.011]
[1718865531684,1.17649264,65698.0,65697.0,0.011]
[1718865532314,1.26771725,65698.0,65697.0,0.011]
[1718865532717,1.20891725,65698.0,65697.0,0.011]
[1718865532927,1.26771725,65698.0,65697.0,0.011]
[1718865533127,1.28771725,65698.0,65697.0,0.011]
[1718865534371,0.76115,65690.0,65689.0,0.2619]
[1718865536283,0.76115,65690.0,65689.0,0.007]
[1718865536716,0.76115,65690.0,65689.0,0.016]
[1718865537648,0.7605957,65690.0,65689.0,0.016]
[1718865542677,1.0650557,65690.0,65689.0,0.016]
[1718865546976,1.1238557,65690.0,65689.0,0.016]
[1718865547177,1.46580764,65690.0,65689.0,0.016]
[1718865547400,1.2151068,65690.0,65689.0,0.016]
[1718865547807,1.21455345,65690.0,65689.0,0.016]
[1718865548175,1.21455345,65690.0,65689.0,0.007]
[1718865548381,1.21555345,65690.0,65689.0,0.007]
[1718865548582,1.065624,65689.0,65688.0,0.000946]
[1718865548761,1.065624,65689.0,65688.0,0.581146]
[1718865549694,1.066624,65689.0,65688.0,0.581146]
[1718865550439,1.065624,65689.0,65688.0,0.581146]
[1718865550641,1.066624,65689.0,65688.0,0.581146]
[1718865555268,0.76216,65689.0,65688.0,0.581146]
[1718865555707,0.76116,65689.0,65688.0,0.581146]
[1718865556224,0.76216,65689.0,65688.0,0.581146]
[1718865556720,0.76116,65689.0,65688.0,0.581146]
[1718865556978,0.17286493,65694.0,65688.0,0.581146]
[1718865556979,0.0912511,65696.0,65688.0,0.28958884]
[1718865557144,0.152214,65697.0,65688.0,0.28958884]
[1718865557145,0.152214,65697.0,65694.0,0.5739]
[1718865557763,0.15138386,65697.0,65694.0,0.5739]
[1718865558103,0.00086,65698.0,65695.0,0.65018172]
[1718865558304,0.00086,65698.0,65697.0,0.2489]
[1718865558546,0.153071,65698.0,65697.0,0.5739]
[1718865558756,0.00086,65698.0,65697.0,0.5739]
[1718865558926,0.00086,65698.0,65697.0,0.726113]
[1718865560338,0.00086,65698.0,65697.0,0.727113]
[1718865560919,0.00086,65698.0,65697.0,0.726113]
[1718865561249,0.00086,65698.0,65697.0,0.729113]
[1718865561674,0.00086,65698.0,65697.0,0.726113]
[1718865561878,0.00086,65698.0,65697.0,1.19010112]
[1718865562551,0.00086,65698.0,65697.0,1.19510112]
[1718865566918,0.00086,65698.0,65697.0,1.21510112]
[1718865567128,0.00086,65698.0,65697.0,1.19510112]
[1718865567494,0.00086,65698.0,65697.0,1.21510112]
[1718865567733,0.00058279,65698.0,65697.0,1.21510112]
[1718865568093,0.00058279,65698.0,65697.0,1.19510112]
[1718865570834,0.00058279,65698.0,65697.0,1.49952812]
[1718865571025,0.00058279,65698.0,65697.0,1.51952812]
[1718865575381,0.00058279,65698.0,65697.0,1.19510112]
[1718865577723,0.00030558,65698.0,65697.0,1.19510112]
[1718865577970,0.00030558,65698.0,65697.0,1.57832812]
[1718865579005,0.00030558,65698.0,65697.0,1.88275512]
[1718865579406,0.00030558,65698.0,65697.0,1.82395512]
[1718865579833,0.00030558,65698.0,65697.0,1.88275512]
[1718865582676,0.00030558,65698.0,65697.0,1.95575512]
[1718865583285,0.00030558,65698.0,65697.0,1.95075512]
[1718865583494,0.00030558,65698.0,65697.0,1.95575512]
[1718865583698,0.00030558,65698.0,65697.0,2.26018212]
[1718865584284,0.00030558,65698.0,65697.0,2.26112812]
[1718865584487,0.00030558,65698.0,65697.0,2.25412812]
[1718865584788,0.00030558,65698.0,65697.0,1.94970112]
[1718865585184,0.00030558,65698.0,65697.0,1.94470112]
[1718865585527,0.00030558,65698.0,65697.0,1.96470112]
[1718865585704,0.00030558,65698.0,65697.0,1.95870112]
[1718865585908,0.00030558,65698.0,65697.0,1.80690112]
[1718865586072,0.00030558,65698.0,65697.0,1.87970112]
[1718865586276,0.00030558,65698.0,65697.0,1.89970112]
[1718865587719,0.2507,65708.0,65705.0,0.152194]
[1718865587895,0.2507,65708.0,65705.0,0.30475512]
[1718865588863,0.37840043,65712.0,65705.0,0.30475512]
[1718865588864,0.402884,65710.0,65705.0,0.30475512]
[1718865589639,0.402884,65710.0,65705.0,0.30675512]
[1718865589842,0.402884,65710.0,65705.0,0.31075512]
[1718865589982,0.402884,65710.0,65705.0,0.30875512]
[1718865591526,0.152186,65709.0,65705.0,0.30875512]
[1718865591872,0.152186,65709.0,65705.0,0.30475512]
[1718865592384,0.152186,65709.0,65705.0,0.30575512]
[1718865592590,0.152186,65709.0,65705.0,0.30475512]
[1718865592798,0.152186,65709.0,65705.0,0.30575512]
[1718865593005,0.152186,65709.0,65705.0,0.30775512]
[1718865594232,0.31960043,65712.0,65706.0,0.2588]
[1718865594233,0.16741743,65712.0,65706.0,0.2588]
[1718865594499,0.09109489,65718.0,65712.0,0.152177]
[1718865594500,0.1,65717.0,65712.0,0.152177]